fUSD/lending_fUSD_20250504
["ID","MTS","AMOUNT","RATE_DAILY","PERIOD"]
[359874555,1746397843960,-470.0,0.00019996,2]
[359874557,1746397843969,-531.57,0.00019996,2]
[359874559,1746397843978,-174.653118,0.00019996,2]
[359874561,1746397843988,-500.0,0.00019996,2]
[359874563,1746397843997,-470.0,0.00019996,2]
[359874565,1746397844006,-1078.51,0.00019996,2]
[359874568,1746397844015,-450.0,0.00019996,2]
[359874570,1746397844025,-470.0,0.00019996,2]
[359874572,1746397844034,-450.0,0.00019996,2]
[359874574,1746397844043,-470.0,0.00019996,2]
[359874575,1746397844052,-14535.85,0.00019996,2]
[359874578,1746397844062,-470.0,0.00019996,2]
[359874579,1746397844071,-506.3068512,0.00019996,2]
[359874581,1746397844080,-450.0,0.00019996,2]
[359874583,1746397844089,-450.0,0.00019996,2]
[359874586,1746397844099,-450.0,0.00019996,2]
[359874588,1746397844108,-524.91495127,0.00019996,2]
[359874590,1746397844117,-450.0,0.00019996,2]
[359874591,1746397844126,-470.0,0.00019996,2]
[359874593,1746397844136,-470.0,0.00019996,2]
[359874596,1746397844145,-470.0,0.00019996,2]
[359874597,1746397844154,-151.0,0.00019996,2]
[359874599,1746397844165,-151.0,0.00019996,2]
[359874601,1746397844174,-450.0,0.00019996,2]
[359874603,1746397844183,-557.22842114,0.00019996,2]
[359874605,1746397844192,-470.0,0.00019996,2]
[359874607,1746397844205,-154.39747,0.00019996,2]
[359874609,1746397844214,-470.0,0.00019996,2]
[359874611,1746397844223,-1000.0,0.00019997,2]
[359874613,1746397844232,-1000.0,0.00019997,2]
[359874615,1746397844241,-1000.0,0.00019997,2]
[359874617,1746397844250,-1000.0,0.00019997,2]
[359874619,1746397844259,-1000.0,0.00019997,2]
[359874621,1746397844268,-1000.0,0.00019997,2]
[359874623,1746397844278,-1000.0,0.00019997,2]
[359874625,1746397844287,-1000.0,0.00019997,2]
[359874627,1746397844296,-1000.0,0.00019997,2]
[359874629,1746397844306,-1000.0,0.00019997,2]
[359874631,1746397844315,-1000.0,0.00019997,2]
[359874633,1746397844324,-1000.0,0.00019997,2]
[359874636,1746397844333,-715.0,0.00019997,2]
[359874637,1746397844343,-151.0,0.00019997,2]
[359874639,1746397844352,-151.0,0.00019997,2]
[359874641,1746397844361,-151.0,0.00019997,2]
[359874643,1746397844370,-470.0,0.00019997,2]
[359874645,1746397844379,-470.0,0.00019997,2]
[359874647,1746397844389,-470.0,0.00019997,2]
[359874649,1746397844398,-450.0,0.00019997,2]
[359874651,1746397844407,-470.0,0.00019997,2]
[359874653,1746397844416,-470.0,0.00019997,2]
[359874655,1746397844426,-309.65240949,0.00019997,2]
[359874657,1746397844434,-470.0,0.00019997,2]
[359874659,1746397844444,-470.0,0.00019997,2]
[359874661,1746397844453,-470.0,0.00019997,2]
[359874663,1746397844462,-470.0,0.00019997,2]
[359874665,1746397844472,-470.0,0.00019997,2]
[359874667,1746397844481,-470.0,0.00019997,2]
[359874669,1746397844490,-217.48385166,0.00019997,2]
[359874672,1746397844500,-470.0,0.00019997,2]
[359874673,1746397844509,-537.74348617,0.00019997,2]
[359874675,1746397844518,-580.52,0.00019997,2]
[359874678,1746397844528,-470.0,0.00019997,2]
[359874680,1746397844537,-470.0,0.00019997,2]
[359874681,1746397844546,-513.19383191,0.00019997,2]
[359874683,1746397844555,-582.27581147,0.00019997,2]
[359874685,1746397844564,-470.0,0.00019997,2]
[359874687,1746397844573,-470.0,0.00019997,2]
[359874689,1746397844583,-470.0,0.00019997,2]
[359874691,1746397844591,-470.0,0.00019997,2]
[359874693,1746397844600,-470.0,0.00019997,2]
[359874695,1746397844609,-595.76053213,0.00019997,2]
[359874697,1746397844618,-470.0,0.00019997,2]
[359874699,1746397844628,-470.0,0.00019997,2]
[359874701,1746397844637,-470.0,0.00019997,2]
[359874703,1746397844646,-470.0,0.00019997,2]
[359874705,1746397844655,-470.0,0.00019997,2]
[359874707,1746397844664,-470.0,0.00019997,2]
[359874709,1746397844673,-523.25540005,0.00019997,2]
[359874711,1746397844683,-354.49626892,0.00019997,2]
[359874713,1746397844692,-470.0,0.00019997,2]
[359874715,1746397844701,-470.0,0.00019997,2]
[359874717,1746397844710,-470.0,0.00019997,2]
[359874719,1746397844719,-450.0,0.00019997,2]
[359874721,1746397844729,-470.0,0.00019997,2]
[359874723,1746397844738,-437.69851992,0.00019997,2]
[359874725,1746397844747,-470.0,0.00019997,2]
[359874727,1746397844756,-549.98701002,0.00019997,2]
[359874729,1746397844765,-470.0,0.00019997,2]
[359874731,1746397844774,-470.0,0.00019997,2]
[359874733,1746397844783,-470.0,0.00019997,2]
[359874735,1746397844792,-470.0,0.00019997,2]
[359874737,1746397844802,-463.01531091,0.00019997,2]
[359874739,1746397844812,-543.57896716,0.00019997,2]
[359874741,1746397844821,-470.0,0.00019997,2]
[359874743,1746397844830,-546.53885919,0.00019997,2]
[359874745,1746397844840,-551.91139272,0.00019997,2]
[359874747,1746397844849,-450.0,0.00019997,2]
[359874749,1746397844862,-470.0,0.00019997,2]
[359874751,1746397844872,-470.0,0.00019997,2]
[359874753,1746397844881,-239.61281324,0.00019997,2]
[359874755,1746397844891,-500.0,0.00019997,2]
[359874757,1746397844900,-470.0,0.00019997,2]
[359874760,1746397844910,-445.49391232,0.00019997,2]
[359874762,1746397844919,-1000.0,0.00019997,2]
[359874764,1746397844928,-470.0,0.00019997,2]
[359874765,1746397844937,-470.0,0.00019997,2]
[359874767,1746397844946,-470.0,0.00019997,2]
[359874769,1746397844956,-470.0,0.00019997,2]
[359874771,1746397844965,-470.0,0.00019997,2]
[359874773,1746397844974,-470.0,0.00019997,2]
[359874775,1746397844983,-470.0,0.00019997,2]
[359874777,1746397844992,-470.0,0.00019997,2]
[359874779,1746397845001,-355.15233702,0.00019997,2]
[359874781,1746397845011,-470.0,0.00019997,2]
[359874783,1746397845020,-470.0,0.00019997,2]
[359874786,1746397845030,-470.0,0.00019997,2]
[359874788,1746397845039,-470.0,0.00019997,2]
[359874790,1746397845048,-470.0,0.00019997,2]
[359874792,1746397845056,-450.0,0.00019997,2]
[359874793,1746397845065,-490.0,0.00019997,2]
[359874795,1746397845075,-450.0,0.00019997,2]
[359874797,1746397845084,-532.75554624,0.00019997,2]
[359874800,1746397845093,-540.05878867,0.00019997,2]
[359874802,1746397845102,-503.42922744,0.00019997,2]
[359874803,1746397845112,-151.0,0.00019997,2]
[359874805,1746397845121,-503.31125843,0.00019997,2]
[359874807,1746397845130,-523.78522046,0.00019997,2]
[359874809,1746397845139,-450.0,0.00019997,2]
[359874812,1746397845149,-470.0,0.00019997,2]
[359874813,1746397845160,-470.0,0.00019997,2]
[359874815,1746397845170,-450.0,0.00019997,2]
[359874818,1746397845179,-198.42322343,0.00019997,2]
[359874838,1746397845354,-251.57677657,0.00019997,2]
[359874840,1746397845363,-389.37449994,0.00019997,2]
[359874842,1746397845373,-450.0,0.00019997,2]
[359874844,1746397845382,-450.0,0.00019997,2]
[359874846,1746397845391,-151.0,0.00019997,2]
[359874848,1746397845401,-274.93935,0.00019997,2]
[359874850,1746397845410,-148.44120124,0.00019997,2]
[359874874,1746397845697,-341.55879876,0.00019997,2]
[359874876,1746397845707,-450.0,0.00019997,2]
[359874878,1746397845717,-490.0,0.00019997,2]
[359874880,1746397845726,-450.0,0.00019997,2]
[359874882,1746397845735,-450.0,0.00019997,2]
[359874884,1746397845744,-450.0,0.00019997,2]
[359874886,1746397845754,-450.0,0.00019997,2]
[359874888,1746397845763,-490.0,0.00019997,2]
[359874890,1746397845773,-500.0,0.00019997,2]
[359874891,1746397845782,-216.67255866,0.00019997,2]
[359874899,1746397845840,-233.32744134,0.00019997,2]
[359874900,1746397845850,-450.0,0.00019997,2]
[359874902,1746397845859,-450.0,0.00019997,2]
[359874905,1746397845869,-450.0,0.00019997,2]
[359874906,1746397845878,-348.67255866,0.00019997,2]
[359874909,1746397845890,-101.32744134,0.00019997,2]
[359874911,1746397845899,-490.0,0.00019997,2]
[359874913,1746397845909,-450.0,0.00019997,2]
[359874915,1746397845918,-490.0,0.00019997,2]
[359874917,1746397845928,-490.0,0.00019997,2]
[359874919,1746397845937,-450.0,0.00019997,2]
[359874921,1746397845948,-499.88966137,0.00019997,2]
[359874923,1746397845958,-450.0,0.00019997,2]
[359874925,1746397845968,-533.35696323,0.00019997,2]
[359874927,1746397845977,-450.0,0.00019997,2]
[359874929,1746397845986,-490.0,0.00019997,2]
[359874931,1746397845996,-450.0,0.00019997,2]
[359874933,1746397846005,-450.0,0.00019997,2]
[359874935,1746397846015,-450.0,0.00019997,2]
[359874937,1746397846024,-450.0,0.00019997,2]
[359874939,1746397846033,-450.0,0.00019997,2]
[359874941,1746397846042,-500.00057972,0.00019997,2]
[359874942,1746397846051,-450.0,0.00019997,2]
[359874944,1746397846061,-450.0,0.00019997,2]
[359874946,1746397846070,-450.0,0.00019997,2]
[359874948,1746397846079,-450.0,0.00019997,2]
[359874950,1746397846088,-450.0,0.00019997,2]
[359874952,1746397846098,-450.0,0.00019997,2]
[359874955,1746397846107,-450.0,0.00019997,2]
[359874957,1746397846116,-226.15070798,0.00019997,2]
[359877896,1746397893809,8877.02,0.00019191,2]
[359877899,1746398020444,286.13,0.00017144,2]
[359877900,1746398020656,286.13,0.00019408,2]
[359877901,1746398094397,1253.86735632,0.0003,120]
[359877904,1746398114575,-185.7365,0.00019997,23]
[359877905,1746398428016,1000.0,0.00018999,2]
[359877906,1746398430015,-165.29,0.00019538,2]
[359877907,1746398430039,-45.8525829,0.00019577,2]
[359877908,1746398463911,250.0,0.00017,2]
[359877909,1746398465091,300.0,0.00019,2]
[359877910,1746398552660,5000.0,0.000299,30]
[359878010,1746398910186,7780.52703837,0.00018988,2]
[359878023,1746399031863,-275.64311037,0.00019534,2]
[359878025,1746399031873,-240.790865,0.00019726,2]
[359878027,1746399031882,-152.679406,0.00019726,2]
[359878028,1746399031891,-114.79411662,0.00019726,2]
[359878029,1746399031960,-37.88528938,0.00019726,2]
[359878030,1746399031969,-152.679406,0.00019753,2]
[359878031,1746399031978,-200.8944815,0.00019831,2]
[359878032,1746399031987,-150.0,0.00019831,2]
[359878033,1746399031996,-31.66337312,0.00019866,2]
[359878034,1746399032012,-118.33662688,0.00019866,2]
[359878035,1746399032021,-207.4,0.00019885,2]
[359878036,1746399032030,-1200.0,0.00019896,2]
[359878037,1746399032039,-300.0,0.00019896,2]
[359878038,1746399032048,-84.07127312,0.00019897,2]
[359878039,1746399032059,-9434.74422688,0.00019897,2]
[359878040,1746399032069,-584.0326119,0.00019898,2]
[359878041,1746399032079,-342.16968926,0.00019898,2]
[359878076,1746399037844,-241.86292262,0.00019898,2]
[359878077,1746399037854,-584.03261188,0.00019898,2]
[359878078,1746399037863,-584.03261188,0.00019899,2]
[359878079,1746399037873,-499.45439437,0.00019899,2]
[359878080,1746399037942,-84.57821751,0.00019899,2]
[359878081,1746399037952,-349.43573737,0.00019899,2]
[359878149,1746399040004,-234.59687451,0.00019899,2]
[359878150,1746399040015,-584.03261188,0.00019899,2]
[359878151,1746399040025,-121.37051361,0.000199,2]
[359878152,1746399040182,-462.66209827,0.000199,2]
[359878153,1746399040192,-584.03261188,0.000199,2]
[359878154,1746399040202,-584.03261188,0.000199,2]
[359878155,1746399040211,-5106.4272001,0.000199,2]
[359878156,1746399040220,-288.869385,0.00019929,2]
[359878157,1746399040229,-500.0,0.00019973,2]
[359878158,1746399040239,-500.0,0.00019973,2]
[359878159,1746399040248,-797.0,0.00019983,2]
[359878160,1746399040258,-636.7149263,0.00019984,2]
[359878161,1746399040267,-1229.8365257,0.00019984,2]
[359878162,1746399040276,-636.7149263,0.00019986,2]
[359878163,1746399040286,-636.7149263,0.00019986,2]
[359878164,1746399040295,-636.7149263,0.00019986,2]
[359878165,1746399040304,-636.7149263,0.00019986,2]
[359878166,1746399040313,-636.7149263,0.00019986,2]
[359878167,1746399040323,-1641.1971969,0.00019986,2]
[359878168,1746399040332,-2052.5578681,0.00019986,2]
[359878169,1746399040342,-2463.9185393,0.00019986,2]
[359878170,1746399040351,-2875.2792105,0.00019986,2]
[359878171,1746399040360,-3286.6398817,0.00019986,2]
[359878172,1746399040370,-470.0,0.00019996,2]
[359878173,1746399040379,-454.68452417,0.00019996,2]
[359878174,1746399040388,-470.0,0.00019996,2]
[359878175,1746399040397,-450.0,0.00019996,2]
[359878176,1746399040407,-450.0,0.00019996,2]
[359878177,1746399040417,-450.0,0.00019996,2]
[359878178,1746399040426,-450.0,0.00019996,2]
[359878179,1746399040435,-259.21357841,0.00019996,2]
[359878180,1746399040445,-450.0,0.00019996,2]
[359878181,1746399040454,-450.0,0.00019996,2]
[359878182,1746399040464,-341.55879876,0.00019996,2]
[359878183,1746399040473,-450.0,0.00019996,2]
[359878184,1746399040483,-450.0,0.00019996,2]
[359878185,1746399040497,-450.0,0.00019996,2]
[359878186,1746399040506,-500.0,0.00019996,2]
[359878187,1746399040516,-216.67255866,0.00019996,2]
[359878188,1746399040526,-490.0,0.00019996,2]
[359878189,1746399040535,-188.2530997,0.00019996,2]
[359878190,1746399040545,-450.0,0.00019996,2]
[359878191,1746399040554,-450.0,0.00019996,2]
[359878192,1746399040564,-490.0,0.00019996,2]
[359878193,1746399040573,-512.51168162,0.00019996,2]
[359878194,1746399040754,-450.0,0.00019996,2]
[359878195,1746399040764,-490.0,0.00019996,2]
[359878196,1746399040773,-450.0,0.00019996,2]
[359878197,1746399040783,-450.0,0.00019996,2]
[359878198,1746399040792,-450.0,0.00019996,2]
[359878199,1746399040802,-450.0,0.00019996,2]
[359878200,1746399040811,-450.0,0.00019996,2]
[359878201,1746399040820,-450.0,0.00019996,2]
[359878202,1746399040830,-450.0,0.00019996,2]
[359878203,1746399040839,-450.0,0.00019996,2]
[359878204,1746399040849,-450.0,0.00019996,2]
[359878205,1746399040858,-223.84929202,0.00019996,2]
[359878206,1746399040867,-450.0,0.00019996,2]
[359878207,1746399040876,-450.0,0.00019996,2]
[359878208,1746399040886,-450.0,0.00019996,2]
[359878209,1746399040895,-450.0,0.00019996,2]
[359878210,1746399040904,-512.83941489,0.00019996,2]
[359878211,1746399040913,-450.0,0.00019996,2]
[359878212,1746399040923,-450.0,0.00019996,2]
[359878213,1746399040932,-450.0,0.00019996,2]
[359878214,1746399040943,-450.0,0.00019996,2]
[359878215,1746399040953,-450.0,0.00019996,2]
[359878216,1746399040963,-450.0,0.00019996,2]
[359878217,1746399040973,-450.0,0.00019996,2]
[359878218,1746399040982,-387.35052971,0.00019996,2]
[359878219,1746399040991,-450.0,0.00019996,2]
[359878220,1746399041001,-450.0,0.00019996,2]
[359878221,1746399041010,-450.0,0.00019996,2]
[359878222,1746399041020,-450.0,0.00019996,2]
[359878223,1746399041031,-548.48322118,0.00019996,2]
[359878224,1746399041041,-450.0,0.00019996,2]
[359878225,1746399041050,-550.4869439,0.00019996,2]
[359878226,1746399041059,-450.0,0.00019996,2]
[359878227,1746399041068,-450.0,0.00019996,2]
[359878228,1746399041077,-450.0,0.00019996,2]
[359878229,1746399041087,-450.0,0.00019996,2]
[359878230,1746399041098,-450.0,0.00019996,2]
[359878231,1746399041107,-450.0,0.00019996,2]
[359878232,1746399041117,-450.0,0.00019996,2]
[359878233,1746399041126,-450.0,0.00019996,2]
[359878234,1746399041135,-450.0,0.00019996,2]
[359878235,1746399041144,-450.0,0.00019996,2]
[359878236,1746399041154,-450.0,0.00019996,2]
[359878237,1746399041165,-450.0,0.00019996,2]
[359878238,1746399041175,-450.0,0.00019996,2]
[359878239,1746399041185,-470.0,0.00019996,2]
[359878240,1746399041195,-450.0,0.00019996,2]
[359878241,1746399041205,-450.0,0.00019996,2]
[359878242,1746399041214,-513.6890662,0.00019996,2]
[359878243,1746399041224,-450.0,0.00019996,2]
[359878244,1746399041233,-450.0,0.00019996,2]
[359878245,1746399041243,-470.0,0.00019996,2]
[359878246,1746399041251,-450.0,0.00019996,2]
[359878247,1746399041261,-470.0,0.00019996,2]
[359878248,1746399041270,-339.24983869,0.00019996,2]
[359878249,1746399041280,-450.0,0.00019996,2]
[359878250,1746399041289,-470.0,0.00019996,2]
[359878251,1746399041298,-450.0,0.00019996,2]
[359878252,1746399041309,-470.0,0.00019996,2]
[359878253,1746399041318,-470.0,0.00019996,2]
[359878254,1746399041327,-470.0,0.00019996,2]
[359878255,1746399041337,-470.0,0.00019996,2]
[359878256,1746399041346,-159.13729955,0.00019996,2]
[359878257,1746399041356,-470.0,0.00019996,2]
[359878258,1746399041365,-185.86546102,0.00019996,2]
[359878259,1746399041375,-470.0,0.00019996,2]
[359878260,1746399041384,-470.0,0.00019996,2]
[359878261,1746399041393,-470.0,0.00019996,2]
[359878262,1746399041403,-510.93515918,0.00019996,2]
[359878263,1746399041413,-233.43978532,0.00019996,2]
[359878264,1746399041422,-598.58570618,0.00019996,2]
[359878265,1746399041431,-538.80739267,0.00019996,2]
[359878266,1746399041440,-244.36,0.00019996,2]
[359878267,1746399041450,-470.0,0.00019996,2]
[359878268,1746399041459,-470.0,0.00019996,2]
[359878269,1746399041468,-532.724592,0.00019996,2]
[359878270,1746399041478,-516.15122785,0.00019996,2]
[359878271,1746399041487,-470.0,0.00019996,2]
[359878272,1746399041496,-300.0,0.00019996,2]
[359878273,1746399041506,-450.0,0.00019996,2]
[359878274,1746399041515,-150.0,0.00019996,2]
[359878275,1746399041525,-200.0,0.00019996,2]
[359878276,1746399041538,-150.0,0.00019996,2]
[359878277,1746399041548,-490.0,0.00019997,2]
[359878278,1746399041557,-450.0,0.00019997,2]
[359878279,1746399041568,-490.0,0.00019997,2]
[359878280,1746399041578,-450.0,0.00019997,2]
[359878281,1746399041587,-450.0,0.00019997,2]
[359878282,1746399041597,-450.0,0.00019997,2]
[359878283,1746399041607,-450.0,0.00019997,2]
[359878284,1746399041617,-590.96,0.00019997,2]
[359878285,1746399041628,-490.0,0.00019997,2]
[359878286,1746399041638,-450.0,0.00019997,2]
[359878287,1746399041648,-440.1,0.00019997,2]
[359878288,1746399041658,-181.03616964,0.00019997,2]
[359878289,1746399041668,-450.0,0.00019997,2]
[359878290,1746399041678,-450.0,0.00019997,2]
[359878291,1746399041690,-450.0,0.00019997,2]
[359878292,1746399041701,-450.0,0.00019997,2]
[359878293,1746399041712,-450.0,0.00019997,2]
[359878294,1746399041722,-450.0,0.00019997,2]
[359878295,1746399041733,-450.0,0.00019997,2]
[359878296,1746399041743,-450.0,0.00019997,2]
[359878297,1746399041753,-450.0,0.00019997,2]
[359878298,1746399041763,-252.34,0.00019997,2]
[359878299,1746399041774,-450.0,0.00019997,2]
[359878300,1746399041784,-500.0,0.00019997,2]
[359878301,1746399041795,-450.0,0.00019997,2]
[359878302,1746399041805,-490.0,0.00019997,2]
[359878303,1746399041815,-490.0,0.00019997,2]
[359878304,1746399041824,-450.0,0.00019997,2]
[359878305,1746399041835,-450.0,0.00019997,2]
[359878306,1746399041846,-450.0,0.00019997,2]
[359878307,1746399041855,-450.0,0.00019997,2]
[359878308,1746399041864,-228.53093664,0.00019997,2]
[359878309,1746399041874,-490.0,0.00019997,2]
[359878310,1746399041883,-490.0,0.00019997,2]
[359878311,1746399041893,-450.0,0.00019997,2]
[359878312,1746399041902,-450.0,0.00019997,2]
[359878313,1746399041912,-450.0,0.00019997,2]
[359878314,1746399041922,-490.0,0.00019997,2]
[359878315,1746399041933,-450.0,0.00019997,2]
[359878316,1746399041943,-450.0,0.00019997,2]
[359878317,1746399041954,-450.0,0.00019997,2]
[359878318,1746399041964,-450.0,0.00019997,2]
[359878319,1746399041973,-450.0,0.00019997,2]
[359878320,1746399041984,-450.0,0.00019997,2]
[359878321,1746399041994,-490.0,0.00019997,2]
[359878322,1746399042003,-450.0,0.00019997,2]
[359878323,1746399042013,-490.0,0.00019997,2]
[359878324,1746399042023,-490.0,0.00019997,2]
[359878325,1746399042033,-490.0,0.00019997,2]
[359878326,1746399042043,-450.0,0.00019997,2]
[359878327,1746399042052,-285.89,0.00019997,2]
[359878328,1746399042062,-450.0,0.00019997,2]
[359878329,1746399042072,-450.0,0.00019997,2]
[359878330,1746399042082,-450.0,0.00019997,2]
[359878331,1746399042092,-536.50828532,0.00019997,2]
[359878332,1746399042102,-450.0,0.00019997,2]
[359878333,1746399042112,-450.0,0.00019997,2]
[359878334,1746399042122,-450.0,0.00019997,2]
[359878335,1746399042131,-165.29780473,0.00019997,2]
[359878336,1746399042141,-470.0,0.00019997,2]
[359878337,1746399042151,-450.0,0.00019997,2]
[359878338,1746399042160,-470.0,0.00019997,2]
[359878339,1746399042169,-154.9719065,0.00019997,2]
[359878340,1746399042179,-287.41712154,0.00019997,2]
[359878341,1746399042188,-450.0,0.00019997,2]
[359878342,1746399042198,-450.0,0.00019997,2]
[359878343,1746399042208,-470.0,0.00019997,2]
[359878344,1746399042218,-470.0,0.00019997,2]
[359878345,1746399042227,-522.22462358,0.00019997,2]
[359878346,1746399042237,-567.38960472,0.00019997,2]
[359878347,1746399042246,-511.51689646,0.00019997,2]
[359878348,1746399042255,-450.0,0.00019997,2]
[359878349,1746399042265,-450.0,0.00019997,2]
[359878350,1746399042274,-500.0,0.00019997,2]
[359878351,1746399042283,-168.77257994,0.00019997,2]
[359878352,1746399042292,-450.0,0.00019997,2]
[359878353,1746399042302,-450.0,0.00019997,2]
[359878354,1746399042312,-450.0,0.00019997,2]
[359878355,1746399042321,-450.0,0.00019997,2]
[359878356,1746399042331,-470.0,0.00019997,2]
[359878357,1746399042342,-450.0,0.00019997,2]
[359878358,1746399042351,-500.0,0.00019997,2]
[359878359,1746399042361,-450.0,0.00019997,2]
[359878360,1746399042370,-450.0,0.00019997,2]
[359878361,1746399042379,-470.0,0.00019997,2]
[359878362,1746399042389,-502.17940531,0.00019997,2]
[359878363,1746399042399,-490.0,0.00019997,2]
[359878364,1746399042410,-470.0,0.00019997,2]
[359878365,1746399042420,-470.0,0.00019997,2]
[359878366,1746399042429,-470.0,0.00019997,2]
[359878367,1746399042438,-450.0,0.00019997,2]
[359878368,1746399042449,-450.0,0.00019997,2]
[359878369,1746399042458,-490.0,0.00019997,2]
[359878370,1746399042467,-450.0,0.00019997,2]
[359878371,1746399042477,-470.0,0.00019997,2]
[359878372,1746399042487,-450.0,0.00019997,2]
[359878373,1746399042496,-470.0,0.00019997,2]
[359878374,1746399042507,-470.0,0.00019997,2]
[359878375,1746399042516,-490.0,0.00019997,2]
[359878376,1746399042526,-450.0,0.00019997,2]
[359878377,1746399042536,-548.87511888,0.00019997,2]
[359878378,1746399042546,-450.0,0.00019997,2]
[359878379,1746399042555,-470.0,0.00019997,2]
[359878380,1746399042564,-450.0,0.00019997,2]
[359878381,1746399042574,-470.0,0.00019997,2]
[359878382,1746399042583,-470.0,0.00019997,2]
[359878383,1746399042593,-250.0,0.00019997,2]
[359878384,1746399042602,-507.29338065,0.00019997,2]
[359878385,1746399042611,-450.0,0.00019997,2]
[359878386,1746399042621,-450.0,0.00019997,2]
[359878389,1746399042631,-450.0,0.00019997,2]
[359878392,1746399042640,-450.0,0.00019997,2]
[359878393,1746399042650,-470.0,0.00019997,2]
[359878396,1746399042659,-470.0,0.00019997,2]
[359878398,1746399042668,-524.8017641,0.00019997,2]
[359878400,1746399042677,-450.0,0.00019997,2]
[359878402,1746399042687,-450.0,0.00019997,2]
[359878404,1746399042699,-470.0,0.00019997,2]
[359878406,1746399042708,-450.0,0.00019997,2]
[359878408,1746399042718,-470.0,0.00019997,2]
[359878410,1746399042727,-490.0,0.00019997,2]
[359878412,1746399042737,-470.0,0.00019997,2]
[359878414,1746399042746,-836.54,0.00019997,2]
[359878415,1746399042755,-470.0,0.00019997,2]
[359878417,1746399042765,-450.0,0.00019997,2]
[359878419,1746399042774,-553.80210397,0.00019997,2]
[359878421,1746399042784,-450.0,0.00019997,2]
[359878423,1746399042793,-450.0,0.00019997,2]
[359878425,1746399042803,-1052.65,0.00019997,2]
[359878427,1746399042811,-543.54184214,0.00019997,2]
[359878429,1746399042821,-150.91,0.00019997,2]
[359878431,1746399042831,-470.0,0.00019997,2]
[359878433,1746399042840,-470.0,0.00019997,2]
[359878435,1746399042849,-470.0,0.00019997,2]
[359878437,1746399042858,-583.47547871,0.00019997,2]
[359878439,1746399042867,-450.0,0.00019997,2]
[359878442,1746399042876,-450.0,0.00019997,2]
[359878445,1746399042885,-519.06,0.00019997,2]
[359878447,1746399042894,-470.0,0.00019997,2]
[359878449,1746399042903,-470.0,0.00019997,2]
[359878452,1746399042912,-470.0,0.00019997,2]
[359878454,1746399042921,-470.0,0.00019997,2]
[359878456,1746399042930,-470.0,0.00019997,2]
[359878458,1746399042939,-470.0,0.00019997,2]
[359878460,1746399042949,-470.0,0.00019997,2]
[359878462,1746399042958,-470.0,0.00019997,2]
[359878464,1746399042967,-572.0,0.00019997,2]
[359878466,1746399042976,-450.0,0.00019997,2]
[359878469,1746399042986,-470.0,0.00019997,2]
[359878472,1746399042995,-562.5,0.00019997,2]
[359878475,1746399043004,-151.0,0.00019997,2]
[359878478,1746399043013,-470.0,0.00019997,2]
[359878481,1746399043022,-450.0,0.00019997,2]
[359878483,1746399043031,-470.0,0.00019997,2]
[359878485,1746399043041,-470.0,0.00019997,2]
[359878488,1746399043051,-263.15803708,0.00019997,2]
[359878491,1746399043060,-450.0,0.00019997,2]
[359878493,1746399043069,-474.52160316,0.00019997,2]